[Event "Titled Tuesday Blitz March 07 Early 2023"]
[White "Kriti Mayur Patel"]
[Black "Chakravarthi Reddy, M"]
[WhiteFideId "35061780"]
[BlackFideId "25009532"]
[WhiteElo "1306"]
[BlackElo "2201"]
[Result "1-0"]
[Round "09"]
[TimeControl "180+2"]
[Date "2023.03.07"]
[WhiteClock "0:00:08"]
[BlackClock "0:00:10"]

1. e4 {[%clk 0:02:53]}  g6 {[%clk 0:01:34]} 2. d4 {[%clk 0:02:52]}  Bg7 {[%clk 0:01:34]} 3. Be3 {[%clk 0:02:52]}  d6 {[%clk 0:01:33]} 4. Nc3 {[%clk 0:02:49]}  a6 {[%clk 0:01:32]} 5. h3 {[%clk 0:02:49]}  b5 {[%clk 0:01:31]} 6. f4 {[%clk 0:02:48]}  Nd7 {[%clk 0:01:29]} 7. Nf3 {[%clk 0:02:47]}  Bb7 {[%clk 0:01:25]} 8. Bd3 {[%clk 0:02:46]}  c5 {[%clk 0:01:21]} 9. O-O {[%clk 0:02:43]}  c4 {[%clk 0:01:20]} 10. Be2 {[%clk 0:02:43]}  Ngf6 {[%clk 0:01:18]} 11. e5 {[%clk 0:02:39]}  Nh5 {[%clk 0:01:18]} 12. Qe1 {[%clk 0:02:29]}  dxe5 {[%clk 0:01:06]} 13. fxe5 {[%clk 0:02:21]}  f5 {[%clk 0:00:47]} 14. Ng5 {[%clk 0:02:13]}  Qb6 {[%clk 0:00:34]} 15. Bxh5 {[%clk 0:02:02]}  gxh5 {[%clk 0:00:34]} 16. Rxf5 {[%clk 0:02:02]}  Qg6 {[%clk 0:00:26]} 17. Qf2 {[%clk 0:01:35]}  Bh6 {[%clk 0:00:23]} 18. Rf1 {[%clk 0:01:31]}  O-O-O {[%clk 0:00:21]} 19. d5 {[%clk 0:01:03]}  Rdf8 {[%clk 0:00:21]} 20. Nf7 {[%clk 0:00:47]}  Bxe3 {[%clk 0:00:21]} 21. Qxe3 {[%clk 0:00:47]}  Rhg8 {[%clk 0:00:19]} 22. e6 {[%clk 0:00:46]}  Nf6 {[%clk 0:00:18]} 23. Rg5 {[%clk 0:00:29]}  Qxc2 {[%clk 0:00:17]} 24. Qc5+ {[%clk 0:00:27]}  Kb8 {[%clk 0:00:16]} 25. Qxe7 {[%clk 0:00:23]}  Nxd5 {[%clk 0:00:17]} 26. Qd6+ {[%clk 0:00:22]}  Ka8 {[%clk 0:00:17]} 27. Nxd5 {[%clk 0:00:18]}  h6 {[%clk 0:00:12]} 28. Rg3 {[%clk 0:00:08]}  Qxb2 {[%clk 0:00:10]} 29. Nxh6 {[%clk 0:00:07]}  Qd4+ {[%clk 0:00:10]} 30. Kh2 {[%clk 0:00:07]}  Bxd5 {[%clk 0:00:09]} 31. Rxf8+ {[%clk 0:00:07]}  Rxf8 {[%clk 0:00:09]} 32. Qxf8+ {[%clk 0:00:08]}  Kb7 {[%clk 0:00:10]} 33. e7 {[%clk 0:00:08]} 1-0


[Site "https://www.chess.com"]

[Event "Titled Tuesday Blitz March 07 Early 2023"]
[White "Martinez, Shawn"]
[Black "Pissama Ntsaou, Martial"]
[WhiteFideId "2039770"]
[BlackFideId "17400864"]
[WhiteElo "2174"]
[BlackElo "2067"]
[Result "1-0"]
[Round "09"]
[TimeControl "180+2"]
[Date "2023.03.07"]
[WhiteClock "0:00:54"]
[BlackClock "0:00:12"]

1. e4 {[%clk 0:02:34]}  c6 {[%clk 0:02:58]} 2. d4 {[%clk 0:02:34]}  d5 {[%clk 0:02:57]} 3. exd5 {[%clk 0:02:34]}  cxd5 {[%clk 0:02:57]} 4. Bd3 {[%clk 0:02:35]}  Nc6 {[%clk 0:02:57]} 5. c3 {[%clk 0:02:36]}  Nf6 {[%clk 0:02:58]} 6. h3 {[%clk 0:02:37]}  g6 {[%clk 0:02:57]} 7. Nf3 {[%clk 0:02:37]}  Bg7 {[%clk 0:02:57]} 8. O-O {[%clk 0:02:38]}  Bf5 {[%clk 0:02:55]} 9. Re1 {[%clk 0:02:38]}  O-O {[%clk 0:02:55]} 10. Bxf5 {[%clk 0:02:34]}  gxf5 {[%clk 0:02:54]} 11. Bf4 {[%clk 0:02:35]}  Ne4 {[%clk 0:02:51]} 12. Nbd2 {[%clk 0:02:34]}  e6 {[%clk 0:02:51]} 13. Qb3 {[%clk 0:02:32]}  Qb6 {[%clk 0:02:39]} 14. Qxb6 {[%clk 0:02:12]}  axb6 {[%clk 0:02:40]} 15. Nb3 {[%clk 0:02:11]}  Na5 {[%clk 0:02:35]} 16. Nfd2 {[%clk 0:02:08]}  Nc4 {[%clk 0:02:30]} 17. Nxc4 {[%clk 0:02:05]}  dxc4 {[%clk 0:02:31]} 18. Nd2 {[%clk 0:02:05]}  Nxd2 {[%clk 0:02:28]} 19. Bxd2 {[%clk 0:02:06]}  b5 {[%clk 0:02:26]} 20. a3 {[%clk 0:02:04]}  Rfd8 {[%clk 0:02:24]} 21. Bf4 {[%clk 0:02:03]}  Rd5 {[%clk 0:02:20]} 22. f3 {[%clk 0:01:54]}  Kf8 {[%clk 0:02:11]} 23. g4 {[%clk 0:01:54]}  fxg4 {[%clk 0:02:07]} 24. hxg4 {[%clk 0:01:54]}  Ke7 {[%clk 0:02:02]} 25. Kf2 {[%clk 0:01:54]}  Bf6 {[%clk 0:01:50]} 26. Rh1 {[%clk 0:01:52]}  Rh8 {[%clk 0:01:49]} 27. Rh3 {[%clk 0:01:48]}  Bg5 {[%clk 0:01:44]} 28. Be5 {[%clk 0:01:41]}  f6 {[%clk 0:01:41]} 29. Bg3 {[%clk 0:01:40]}  e5 {[%clk 0:01:33]} 30. Re1 {[%clk 0:01:35]}  Kf7 {[%clk 0:01:17]} 31. Rh5 {[%clk 0:01:29]}  h6 {[%clk 0:01:02]} 32. dxe5 {[%clk 0:01:26]}  Rd2+ {[%clk 0:01:01]} 33. Kf1 {[%clk 0:01:24]}  fxe5 {[%clk 0:01:00]} 34. Bxe5 {[%clk 0:01:21]}  Re8 {[%clk 0:00:42]} 35. f4 {[%clk 0:01:20]}  Bd8 {[%clk 0:00:27]} 36. Rxh6 {[%clk 0:01:16]}  Rxb2 {[%clk 0:00:26]} 37. Rh7+ {[%clk 0:01:14]}  Kg6 {[%clk 0:00:26]} 38. Rxb7 {[%clk 0:01:00]}  Bh4 {[%clk 0:00:24]} 39. Re2 {[%clk 0:00:59]}  Rb1+ {[%clk 0:00:20]} 40. Kg2 {[%clk 0:00:59]}  Rd8 {[%clk 0:00:19]} 41. Bd4 {[%clk 0:00:55]}  Ra8 {[%clk 0:00:14]} 42. Re6+ {[%clk 0:00:54]}  Bf6 {[%clk 0:00:12]} 43. Rxf6# {[%clk 0:00:54]} 1-0


[Site "https://www.chess.com"]

[Event "Titled Tuesday Blitz March 07 Early 2023"]
[White "Baruch, Liam"]
[Black "Tarnowska, Aleksandra"]
[WhiteFideId "14322064"]
[BlackFideId "1180967"]
[WhiteElo "2064"]
[BlackElo "1776"]
[Result "1-0"]
[Round "09"]
[TimeControl "180+2"]
[Date "2023.03.07"]
[WhiteClock "0:00:13"]
[BlackClock "0:00:01"]

1. e4 {[%clk 0:03:00]}  c5 {[%clk 0:02:58]} 2. Nf3 {[%clk 0:03:00]}  e6 {[%clk 0:02:57]} 3. d4 {[%clk 0:02:57]}  cxd4 {[%clk 0:02:58]} 4. Nxd4 {[%clk 0:02:58]}  a6 {[%clk 0:02:59]} 5. Nc3 {[%clk 0:02:58]}  Qc7 {[%clk 0:02:59]} 6. Be2 {[%clk 0:02:58]}  Nf6 {[%clk 0:02:58]} 7. O-O {[%clk 0:02:57]}  Be7 {[%clk 0:02:53]} 8. Be3 {[%clk 0:02:52]}  O-O {[%clk 0:02:53]} 9. f4 {[%clk 0:02:52]}  d6 {[%clk 0:02:53]} 10. g4 {[%clk 0:02:48]}  b5 {[%clk 0:02:51]} 11. a3 {[%clk 0:02:20]}  Bb7 {[%clk 0:02:49]} 12. Bf3 {[%clk 0:02:19]}  Nc6 {[%clk 0:02:44]} 13. g5 {[%clk 0:02:17]}  Nd7 {[%clk 0:02:39]} 14. Nde2 {[%clk 0:01:59]}  Nb6 {[%clk 0:02:22]} 15. Bg2 {[%clk 0:01:54]}  Nc4 {[%clk 0:02:20]} 16. Qc1 {[%clk 0:01:48]}  N6a5 {[%clk 0:01:59]} 17. b3 {[%clk 0:01:34]}  Nxe3 {[%clk 0:01:59]} 18. Qxe3 {[%clk 0:01:35]}  Rac8 {[%clk 0:01:54]} 19. Kh1 {[%clk 0:01:29]}  Rfd8 {[%clk 0:01:52]} 20. f5 {[%clk 0:01:26]}  exf5 {[%clk 0:01:20]} 21. Rxf5 {[%clk 0:01:27]}  Nc6 {[%clk 0:00:56]} 22. Nd5 {[%clk 0:01:21]}  Qd7 {[%clk 0:00:42]} 23. Nb6 {[%clk 0:01:20]}  Qe6 {[%clk 0:00:42]} 24. Nf4 {[%clk 0:01:09]}  Qxf5 {[%clk 0:00:13]} 25. exf5 {[%clk 0:01:07]}  Rb8 {[%clk 0:00:11]} 26. Nfd5 {[%clk 0:01:01]}  Bf8 {[%clk 0:00:07]} 27. f6 {[%clk 0:00:53]}  Re8 {[%clk 0:00:07]} 28. Qg3 {[%clk 0:00:42]}  Ne5 {[%clk 0:00:07]} 29. fxg7 {[%clk 0:00:40]}  Bxg7 {[%clk 0:00:07]} 30. Nf6+ {[%clk 0:00:37]}  Kh8 {[%clk 0:00:06]} 31. Nxe8 {[%clk 0:00:34]}  Bxg2+ {[%clk 0:00:04]} 32. Qxg2 {[%clk 0:00:25]}  Rxe8 {[%clk 0:00:04]} 33. Rf1 {[%clk 0:00:20]}  Rb8 {[%clk 0:00:02]} 34. Nd5 {[%clk 0:00:20]}  Rc8 {[%clk 0:00:02]} 35. Nf6 {[%clk 0:00:19]}  Rc3 {[%clk 0:00:01]} 36. Qa8+ {[%clk 0:00:13]} 1-0


[Site "https://www.chess.com"]

[Event "Titled Tuesday Blitz March 07 Early 2023"]
[White "Awoki, Daniel Teidi"]
[Black "Kiseleva, Arina"]
[WhiteFideId "2100827"]
[BlackFideId "4164989"]
[WhiteElo "2087"]
[BlackElo "1756"]
[Result "0-1"]
[Round "09"]
[TimeControl "180+2"]
[Date "2023.03.07"]
[WhiteClock "0:00:17"]
[BlackClock "0:01:11"]

1. e4 {[%clk 0:03:00]}  c6 {[%clk 0:02:59]} 2. d4 {[%clk 0:02:59]}  d5 {[%clk 0:03:00]} 3. exd5 {[%clk 0:03:00]}  cxd5 {[%clk 0:03:00]} 4. c4 {[%clk 0:03:01]}  Nf6 {[%clk 0:02:57]} 5. Nc3 {[%clk 0:03:01]}  e6 {[%clk 0:02:56]} 6. Nf3 {[%clk 0:03:01]}  Bb4 {[%clk 0:02:53]} 7. cxd5 {[%clk 0:03:01]}  Nxd5 {[%clk 0:02:53]} 8. Bd2 {[%clk 0:03:01]}  O-O {[%clk 0:02:52]} 9. Bd3 {[%clk 0:03:01]}  b6 {[%clk 0:02:52]} 10. O-O {[%clk 0:02:59]}  Bb7 {[%clk 0:02:48]} 11. Re1 {[%clk 0:02:48]}  Nd7 {[%clk 0:02:46]} 12. a3 {[%clk 0:02:21]}  Be7 {[%clk 0:02:41]} 13. Qe2 {[%clk 0:02:10]}  N7f6 {[%clk 0:02:35]} 14. Ne5 {[%clk 0:02:07]}  Nxc3 {[%clk 0:02:26]} 15. bxc3 {[%clk 0:02:07]}  Rc8 {[%clk 0:02:10]} 16. f3 {[%clk 0:01:48]}  Nd7 {[%clk 0:01:54]} 17. c4 {[%clk 0:00:54]}  Nxe5 {[%clk 0:01:47]} 18. Qxe5 {[%clk 0:00:55]}  Bf6 {[%clk 0:01:45]} 19. Qe2 {[%clk 0:00:31]}  Bxd4+ {[%clk 0:01:45]} 20. Kh1 {[%clk 0:00:31]}  Bxa1 {[%clk 0:01:44]} 21. Rxa1 {[%clk 0:00:32]}  Qd4 {[%clk 0:01:42]} 22. Rd1 {[%clk 0:00:32]}  Qf6 {[%clk 0:01:24]} 23. Rc1 {[%clk 0:00:25]}  h6 {[%clk 0:01:20]} 24. Bc3 {[%clk 0:00:25]}  Qh4 {[%clk 0:01:16]} 25. Qe5 {[%clk 0:00:20]}  Qg5 {[%clk 0:01:12]} 26. Qe2 {[%clk 0:00:17]}  Qxc1+ {[%clk 0:01:11]} 0-1


[Site "https://www.chess.com"]

[Event "Titled Tuesday Blitz March 07 Early 2023"]
[White "rikchessmx"]
[Black "Necula, Iulian"]
[BlackFideId "1232380"]
[WhiteElo "2213"]
[BlackElo "1790"]
[Result "0-1"]
[Round "09"]
[TimeControl "180+2"]
[Date "2023.03.07"]
[WhiteClock "0:00:10"]
[BlackClock "0:00:41"]

1. e4 {[%clk 0:02:52]}  c5 {[%clk 0:02:59]} 2. Nf3 {[%clk 0:02:51]}  d6 {[%clk 0:02:59]} 3. d4 {[%clk 0:02:52]}  cxd4 {[%clk 0:03:00]} 4. Nxd4 {[%clk 0:02:52]}  Nf6 {[%clk 0:03:00]} 5. Nc3 {[%clk 0:02:53]}  g6 {[%clk 0:03:01]} 6. f4 {[%clk 0:02:53]}  Nc6 {[%clk 0:02:58]} 7. Nxc6 {[%clk 0:02:53]}  bxc6 {[%clk 0:02:57]} 8. Bd3 {[%clk 0:02:54]}  Bg7 {[%clk 0:02:56]} 9. O-O {[%clk 0:02:49]}  O-O {[%clk 0:02:55]} 10. Qe1 {[%clk 0:02:04]}  Rb8 {[%clk 0:02:43]} 11. Kh1 {[%clk 0:02:00]}  Bb7 {[%clk 0:02:20]} 12. Qh4 {[%clk 0:01:22]}  Nd7 {[%clk 0:02:14]} 13. f5 {[%clk 0:01:20]}  Ne5 {[%clk 0:02:11]} 14. Bg5 {[%clk 0:01:17]}  f6 {[%clk 0:02:02]} 15. Be3 {[%clk 0:01:15]}  Nxd3 {[%clk 0:01:42]} 16. cxd3 {[%clk 0:01:14]}  d5 {[%clk 0:01:39]} 17. Bxa7 {[%clk 0:01:09]}  Rc8 {[%clk 0:01:38]} 18. Bc5 {[%clk 0:01:08]}  d4 {[%clk 0:01:35]} 19. Ne2 {[%clk 0:01:06]}  g5 {[%clk 0:01:34]} 20. Qh5 {[%clk 0:01:04]}  Ba6 {[%clk 0:01:31]} 21. Nxd4 {[%clk 0:01:01]}  Bxd3 {[%clk 0:01:26]} 22. Rfd1 {[%clk 0:00:58]}  Bxe4 {[%clk 0:01:22]} 23. Ne6 {[%clk 0:00:58]}  Qa5 {[%clk 0:01:18]} 24. Bxe7 {[%clk 0:00:53]}  Rf7 {[%clk 0:01:15]} 25. Bd8 {[%clk 0:00:38]}  Qxf5 {[%clk 0:01:11]} 26. Nxg7 {[%clk 0:00:35]}  Kxg7 {[%clk 0:01:10]} 27. Rf1 {[%clk 0:00:32]}  Qg6 {[%clk 0:01:08]} 28. Qxg6+ {[%clk 0:00:30]}  hxg6 {[%clk 0:01:06]} 29. Bb6 {[%clk 0:00:31]}  c5 {[%clk 0:01:06]} 30. Rac1 {[%clk 0:00:29]}  c4 {[%clk 0:01:05]} 31. Bd4 {[%clk 0:00:28]}  Bd3 {[%clk 0:01:04]} 32. Rf2 {[%clk 0:00:27]}  Rd8 {[%clk 0:01:00]} 33. Bc3 {[%clk 0:00:27]}  Re8 {[%clk 0:00:59]} 34. h3 {[%clk 0:00:24]}  Re6 {[%clk 0:00:58]} 35. a4 {[%clk 0:00:21]}  Kh6 {[%clk 0:00:58]} 36. a5 {[%clk 0:00:20]}  f5 {[%clk 0:00:57]} 37. Ra1 {[%clk 0:00:18]}  Ra6 {[%clk 0:00:56]} 38. Kh2 {[%clk 0:00:17]}  f4 {[%clk 0:00:52]} 39. Rd2 {[%clk 0:00:17]}  Kh5 {[%clk 0:00:50]} 40. b4 {[%clk 0:00:16]}  Rb7 {[%clk 0:00:47]} 41. Re1 {[%clk 0:00:15]}  g4 {[%clk 0:00:47]} 42. Re5+ {[%clk 0:00:15]}  g5 {[%clk 0:00:46]} 43. hxg4+ {[%clk 0:00:13]}  Kxg4 {[%clk 0:00:46]} 44. Rf2 {[%clk 0:00:11]}  Rh7+ {[%clk 0:00:45]} 45. Kg1 {[%clk 0:00:10]}  Rah6 {[%clk 0:00:42]} 46. Rd2 {[%clk 0:00:10]}  Rh1+ {[%clk 0:00:41]} 47. Kf2 {[%clk 0:00:10]}  Rf1# {[%clk 0:00:41]} 0-1


[Site "https://www.chess.com"]

[Event "Titled Tuesday Blitz March 07 Early 2023"]
[White "Quirke, Jeffrey"]
[Black "Tharushi, T H D Niklesha"]
[WhiteFideId "2013029"]
[BlackFideId "9918264"]
[WhiteElo "2194"]
[BlackElo "1596"]
[Result "1-0"]
[Round "09"]
[TimeControl "180+2"]
[Date "2023.03.07"]
[WhiteClock "0:00:23"]
[BlackClock "0:00:02"]

1. e4 {[%clk 0:02:55]}  c5 {[%clk 0:02:58]} 2. Nc3 {[%clk 0:02:54]}  a6 {[%clk 0:02:57]} 3. a4 {[%clk 0:02:51]}  b6 {[%clk 0:02:54]} 4. f4 {[%clk 0:02:49]}  Bb7 {[%clk 0:02:55]} 5. Nf3 {[%clk 0:02:48]}  e6 {[%clk 0:02:52]} 6. d3 {[%clk 0:02:35]}  d5 {[%clk 0:02:51]} 7. g3 {[%clk 0:02:33]}  Nf6 {[%clk 0:02:48]} 8. e5 {[%clk 0:02:23]}  Ng8 {[%clk 0:02:46]} 9. Bg2 {[%clk 0:02:23]}  h5 {[%clk 0:02:45]} 10. O-O {[%clk 0:02:22]}  Nh6 {[%clk 0:02:45]} 11. Ne2 {[%clk 0:02:20]}  Be7 {[%clk 0:02:44]} 12. c3 {[%clk 0:02:20]}  O-O {[%clk 0:02:41]} 13. d4 {[%clk 0:02:18]}  c4 {[%clk 0:02:40]} 14. h3 {[%clk 0:02:13]}  Nc6 {[%clk 0:02:27]} 15. Nh2 {[%clk 0:02:05]}  Nf5 {[%clk 0:02:22]} 16. g4 {[%clk 0:01:56]}  hxg4 {[%clk 0:02:21]} 17. hxg4 {[%clk 0:01:57]}  Nh4 {[%clk 0:02:21]} 18. Qe1 {[%clk 0:01:48]}  Nxg2 {[%clk 0:02:20]} 19. Kxg2 {[%clk 0:01:48]}  f6 {[%clk 0:02:16]} 20. Nf3 {[%clk 0:01:45]}  f5 {[%clk 0:02:11]} 21. g5 {[%clk 0:01:43]}  Kf7 {[%clk 0:01:50]} 22. Rh1 {[%clk 0:01:42]}  Ke8 {[%clk 0:01:50]} 23. Be3 {[%clk 0:01:42]}  Kd7 {[%clk 0:01:49]} 24. Rh7 {[%clk 0:01:30]}  Rg8 {[%clk 0:01:41]} 25. Qh4 {[%clk 0:01:29]}  Qf8 {[%clk 0:01:36]} 26. Rh1 {[%clk 0:01:30]}  Nd8 {[%clk 0:01:30]} 27. Qh5 {[%clk 0:01:29]}  Nf7 {[%clk 0:01:23]} 28. Nh4 {[%clk 0:01:23]}  Bc6 {[%clk 0:00:54]} 29. Ng6 {[%clk 0:01:20]}  Qe8 {[%clk 0:00:50]} 30. Nxe7 {[%clk 0:01:16]}  Qxe7 {[%clk 0:00:49]} 31. Qg6 {[%clk 0:01:14]}  Nd8 {[%clk 0:00:40]} 32. Ng3 {[%clk 0:00:53]}  Bxa4 {[%clk 0:00:39]} 33. Nh5 {[%clk 0:00:52]}  Qf7 {[%clk 0:00:19]} 34. Nf6+ {[%clk 0:00:43]}  Ke7 {[%clk 0:00:13]} 35. Nxg8+ {[%clk 0:00:42]}  Kf8 {[%clk 0:00:02]} 36. Qxf7+ {[%clk 0:00:25]}  Nxf7 {[%clk 0:00:02]} 37. Nf6 {[%clk 0:00:22]}  gxf6 {[%clk 0:00:02]} 38. exf6 {[%clk 0:00:23]} 1-0


[Site "https://www.chess.com"]

[Event "Titled Tuesday Blitz March 07 Early 2023"]
[White "Grigoryan, Meri"]
[Black "Tanmay Jain"]
[WhiteFideId "13300571"]
[BlackFideId "45015481"]
[WhiteElo "1919"]
[BlackElo "2032"]
[Result "1-0"]
[Round "09"]
[TimeControl "180+2"]
[Date "2023.03.07"]
[WhiteClock "0:00:10"]
[BlackClock "0:00:15"]

1. d4 {[%clk 0:02:59]}  Nf6 {[%clk 0:02:59]} 2. c4 {[%clk 0:02:58]}  e6 {[%clk 0:02:59]} 3. Nc3 {[%clk 0:02:58]}  d5 {[%clk 0:02:58]} 4. Nf3 {[%clk 0:02:57]}  Be7 {[%clk 0:02:57]} 5. cxd5 {[%clk 0:02:57]}  exd5 {[%clk 0:02:57]} 6. Bf4 {[%clk 0:02:57]}  O-O {[%clk 0:02:56]} 7. e3 {[%clk 0:02:57]}  c6 {[%clk 0:02:54]} 8. Bd3 {[%clk 0:02:57]}  Bg4 {[%clk 0:02:53]} 9. h3 {[%clk 0:02:56]}  Bh5 {[%clk 0:02:53]} 10. Rc1 {[%clk 0:02:56]}  Nbd7 {[%clk 0:02:52]} 11. g4 {[%clk 0:02:54]}  Bg6 {[%clk 0:02:51]} 12. Ne5 {[%clk 0:02:54]}  Nxe5 {[%clk 0:02:50]} 13. dxe5 {[%clk 0:02:53]}  Ne4 {[%clk 0:02:45]} 14. O-O {[%clk 0:02:41]}  Qb6 {[%clk 0:02:29]} 15. Na4 {[%clk 0:02:24]}  Qa5 {[%clk 0:02:12]} 16. Qc2 {[%clk 0:02:15]}  h5 {[%clk 0:01:49]} 17. f3 {[%clk 0:02:06]}  Ng5 {[%clk 0:01:38]} 18. Bxg5 {[%clk 0:02:04]}  Bxd3 {[%clk 0:01:34]} 19. Qxd3 {[%clk 0:01:59]}  Bxg5 {[%clk 0:01:33]} 20. Nc3 {[%clk 0:01:57]}  hxg4 {[%clk 0:01:01]} 21. hxg4 {[%clk 0:01:56]}  Qb6 {[%clk 0:00:53]} 22. f4 {[%clk 0:01:55]}  Be7 {[%clk 0:00:53]} 23. Rc2 {[%clk 0:01:52]}  Rad8 {[%clk 0:00:50]} 24. Rh2 {[%clk 0:01:51]}  g6 {[%clk 0:00:47]} 25. f5 {[%clk 0:01:50]}  Bg5 {[%clk 0:00:41]} 26. Rf3 {[%clk 0:01:44]}  Bxe3+ {[%clk 0:00:20]} 27. Kh1 {[%clk 0:01:17]}  c5 {[%clk 0:00:01]} 28. fxg6 {[%clk 0:01:17]}  Qxg6 {[%clk 0:00:01]} 29. Qxe3 {[%clk 0:00:50]}  d4 {[%clk 0:00:01]} 30. Qf2 {[%clk 0:00:36]}  dxc3 {[%clk 0:00:02]} 31. Rxc3 {[%clk 0:00:19]}  Qb1+ {[%clk 0:00:02]} 32. Kg2 {[%clk 0:00:18]}  Qe4+ {[%clk 0:00:03]} 33. Rf3 {[%clk 0:00:16]}  Qg6 {[%clk 0:00:04]} 34. Qh4 {[%clk 0:00:14]}  Qg7 {[%clk 0:00:03]} 35. Rf5 {[%clk 0:00:12]}  Rd2+ {[%clk 0:00:03]} 36. Kg3 {[%clk 0:00:12]}  Rd3+ {[%clk 0:00:03]} 37. Kf4 {[%clk 0:00:12]}  Rd5 {[%clk 0:00:04]} 38. Rg5 {[%clk 0:00:12]}  Rd4+ {[%clk 0:00:05]} 39. Kg3 {[%clk 0:00:12]}  Rd3+ {[%clk 0:00:05]} 40. Kf2 {[%clk 0:00:12]}  Rd2+ {[%clk 0:00:05]} 41. Ke3 {[%clk 0:00:12]}  Rxh2 {[%clk 0:00:06]} 42. Rxg7+ {[%clk 0:00:12]}  Kxg7 {[%clk 0:00:06]} 43. Qxh2 {[%clk 0:00:12]}  Re8 {[%clk 0:00:07]} 44. Qf4 {[%clk 0:00:11]}  Re6 {[%clk 0:00:08]} 45. Qf5 {[%clk 0:00:11]}  b6 {[%clk 0:00:08]} 46. g5 {[%clk 0:00:12]}  Rc6 {[%clk 0:00:09]} 47. Ke4 {[%clk 0:00:12]}  Re6 {[%clk 0:00:09]} 48. Kd5 {[%clk 0:00:12]}  Rg6 {[%clk 0:00:10]} 49. b3 {[%clk 0:00:11]}  Kg8 {[%clk 0:00:10]} 50. a3 {[%clk 0:00:07]}  Kg7 {[%clk 0:00:11]} 51. b4 {[%clk 0:00:07]}  cxb4 {[%clk 0:00:10]} 52. axb4 {[%clk 0:00:07]}  a5 {[%clk 0:00:11]} 53. bxa5 {[%clk 0:00:07]}  bxa5 {[%clk 0:00:12]} 54. Qf4 {[%clk 0:00:07]}  a4 {[%clk 0:00:13]} 55. Qxa4 {[%clk 0:00:07]}  Rxg5 {[%clk 0:00:13]} 56. Qd4 {[%clk 0:00:07]}  Rg6 {[%clk 0:00:14]} 57. e6+ {[%clk 0:00:08]}  Kg8 {[%clk 0:00:14]} 58. e7 {[%clk 0:00:08]}  Re6 {[%clk 0:00:13]} 59. Qg4+ {[%clk 0:00:08]}  Kh7 {[%clk 0:00:13]} 60. Qxe6 {[%clk 0:00:08]}  fxe6+ {[%clk 0:00:14]} 61. Kxe6 {[%clk 0:00:09]}  Kg6 {[%clk 0:00:15]} 62. e8=Q+ {[%clk 0:00:10]} 1-0


[Site "https://www.chess.com"]

[Event "Titled Tuesday Blitz March 07 Early 2023"]
[White "Erigaisi Arjun"]
[Black "Bluebaum, Matthias"]
[WhiteFideId "35009192"]
[BlackFideId "24651516"]
[WhiteElo "2737"]
[BlackElo "2638"]
[Result "1/2-1/2"]
[Round "10"]
[TimeControl "180+2"]
[Date "2023.03.07"]
[WhiteClock "0:01:18"]
[BlackClock "0:00:25"]

1. b3 {[%clk 0:03:00]}  d5 {[%clk 0:03:00]} 2. Bb2 {[%clk 0:03:00]}  c5 {[%clk 0:03:01]} 3. e3 {[%clk 0:02:58]}  a6 {[%clk 0:03:00]} 4. Nf3 {[%clk 0:02:56]}  Nc6 {[%clk 0:03:01]} 5. d4 {[%clk 0:02:57]}  cxd4 {[%clk 0:03:02]} 6. Nxd4 {[%clk 0:02:56]}  Nf6 {[%clk 0:03:02]} 7. Nd2 {[%clk 0:02:56]}  e6 {[%clk 0:03:03]} 8. c4 {[%clk 0:02:56]}  Bd6 {[%clk 0:03:02]} 9. Be2 {[%clk 0:02:56]}  e5 {[%clk 0:03:02]} 10. cxd5 {[%clk 0:02:36]}  exd4 {[%clk 0:02:26]} 11. dxc6 {[%clk 0:02:36]}  dxe3 {[%clk 0:02:27]} 12. fxe3 {[%clk 0:02:37]}  bxc6 {[%clk 0:01:59]} 13. O-O {[%clk 0:02:36]}  Be7 {[%clk 0:02:00]} 14. Nc4 {[%clk 0:02:30]}  Be6 {[%clk 0:01:52]} 15. Qxd8+ {[%clk 0:02:22]}  Rxd8 {[%clk 0:01:50]} 16. Rad1 {[%clk 0:02:14]}  O-O {[%clk 0:01:39]} 17. Ne5 {[%clk 0:02:13]}  Bc5 {[%clk 0:01:38]} 18. Bd4 {[%clk 0:02:03]}  Bxd4 {[%clk 0:01:33]} 19. exd4 {[%clk 0:02:04]}  Rd6 {[%clk 0:00:55]} 20. Rc1 {[%clk 0:01:37]}  Rxd4 {[%clk 0:00:53]} 21. Nxc6 {[%clk 0:01:37]}  Rd2 {[%clk 0:00:53]} 22. Bxa6 {[%clk 0:01:35]}  Rxa2 {[%clk 0:00:53]} 23. Bc4 {[%clk 0:01:35]}  Bxc4 {[%clk 0:00:49]} 24. Rxc4 {[%clk 0:01:36]}  Rb2 {[%clk 0:00:45]} 25. b4 {[%clk 0:01:34]}  Re8 {[%clk 0:00:45]} 26. Rd1 {[%clk 0:01:21]}  h6 {[%clk 0:00:31]} 27. Rd8 {[%clk 0:01:19]}  Rxd8 {[%clk 0:00:31]} 28. Nxd8 {[%clk 0:01:20]}  Nd5 {[%clk 0:00:31]} 29. Rc8 {[%clk 0:01:16]}  Nxb4 {[%clk 0:00:23]} 30. Ne6+ {[%clk 0:01:14]}  Kh7 {[%clk 0:00:24]} 31. Nf8+ {[%clk 0:01:15]}  Kg8 {[%clk 0:00:24]} 32. Ne6+ {[%clk 0:01:15]}  Kh7 {[%clk 0:00:24]} 33. Nf8+ {[%clk 0:01:16]}  Kg8 {[%clk 0:00:25]} 34. Nd7+ {[%clk 0:01:17]}  Kh7 {[%clk 0:00:25]} 35. Nf8+ {[%clk 0:01:18]} 1/2-1/2


[Site "https://www.chess.com"]

[Event "Titled Tuesday Blitz March 07 Early 2023"]
[White "Sjugirov, Sanan"]
[Black "Fedoseev, Vladimir"]
[WhiteFideId "4189302"]
[BlackFideId "24130737"]
[WhiteElo "2569"]
[BlackElo "2752"]
[Result "1/2-1/2"]
[Round "10"]
[TimeControl "180+2"]
[Date "2023.03.07"]
[WhiteClock "0:00:06"]
[BlackClock "0:00:09"]

1. e4 {[%clk 0:03:00]}  c5 {[%clk 0:02:59]} 2. Nf3 {[%clk 0:03:01]}  d6 {[%clk 0:03:00]} 3. Bb5+ {[%clk 0:02:58]}  Nd7 {[%clk 0:02:58]} 4. d4 {[%clk 0:02:51]}  cxd4 {[%clk 0:02:55]} 5. Qxd4 {[%clk 0:02:52]}  Nf6 {[%clk 0:02:52]} 6. O-O {[%clk 0:02:45]}  a6 {[%clk 0:02:49]} 7. Bxd7+ {[%clk 0:02:44]}  Bxd7 {[%clk 0:02:46]} 8. Bg5 {[%clk 0:02:37]}  e6 {[%clk 0:02:43]} 9. Nbd2 {[%clk 0:02:36]}  Rc8 {[%clk 0:02:30]} 10. Rfc1 {[%clk 0:02:10]}  h6 {[%clk 0:02:15]} 11. Bxf6 {[%clk 0:02:04]}  Qxf6 {[%clk 0:02:14]} 12. e5 {[%clk 0:01:55]}  dxe5 {[%clk 0:02:09]} 13. Nxe5 {[%clk 0:01:56]}  Qd8 {[%clk 0:01:18]} 14. Ne4 {[%clk 0:01:41]}  Bb5 {[%clk 0:01:09]} 15. Qe3 {[%clk 0:01:29]}  Qc7 {[%clk 0:01:09]} 16. Qg3 {[%clk 0:01:21]}  Bc6 {[%clk 0:01:05]} 17. Nxc6 {[%clk 0:01:08]}  Qxg3 {[%clk 0:01:03]} 18. hxg3 {[%clk 0:01:04]}  Rxc6 {[%clk 0:01:04]} 19. c3 {[%clk 0:00:42]}  f5 {[%clk 0:01:03]} 20. Nd2 {[%clk 0:00:42]}  Kf7 {[%clk 0:01:03]} 21. Nf3 {[%clk 0:00:41]}  Kf6 {[%clk 0:01:04]} 22. Rd1 {[%clk 0:00:41]}  Bd6 {[%clk 0:00:54]} 23. Rd2 {[%clk 0:00:41]}  Rhc8 {[%clk 0:00:40]} 24. Rad1 {[%clk 0:00:41]}  Bc5 {[%clk 0:00:38]} 25. Re2 {[%clk 0:00:35]}  Rd6 {[%clk 0:00:35]} 26. Rde1 {[%clk 0:00:35]}  b5 {[%clk 0:00:29]} 27. a3 {[%clk 0:00:34]}  g5 {[%clk 0:00:28]} 28. Kf1 {[%clk 0:00:31]}  Rcd8 {[%clk 0:00:25]} 29. Ne5 {[%clk 0:00:24]}  h5 {[%clk 0:00:20]} 30. b4 {[%clk 0:00:18]}  Ba7 {[%clk 0:00:20]} 31. c4 {[%clk 0:00:18]}  bxc4 {[%clk 0:00:08]} 32. Nxc4 {[%clk 0:00:19]}  Rc6 {[%clk 0:00:08]} 33. Na5 {[%clk 0:00:19]}  Rb6 {[%clk 0:00:09]} 34. Nc4 {[%clk 0:00:13]}  Rc6 {[%clk 0:00:09]} 35. Na5 {[%clk 0:00:12]}  Rb6 {[%clk 0:00:09]} 36. Nc4 {[%clk 0:00:06]}  Rc6 {[%clk 0:00:09]} 1/2-1/2


[Site "https://www.chess.com"]